bitfinex-derivatives/quotes_BTCF0:USTF0_20251219
["timestamp","ask_amount","ask_price","bid_price","bid_amount"]
[1766153414617,0.00568,88152.0,88136.0,0.00017013]
[1766153414812,0.00568,88152.0,88143.0,0.0113514]
[1766153415313,0.00568,88152.0,88145.0,0.0113511]
[1766153417225,0.00568,88152.0,88136.0,0.00017013]
[1766153417422,0.00017013,88153.0,88137.0,0.0113521]
[1766153417622,1.3e-07,88153.0,88137.0,0.0113521]
[1766153417812,1.3e-07,88153.0,88143.0,0.0113513]
[1766153418011,1.3e-07,88153.0,88136.0,0.00017013]
[1766153418215,1.3e-07,88153.0,88137.0,0.0113521]
[1766153418418,0.25768738,88150.0,88137.0,0.0113521]
[1766153418727,0.25768738,88150.0,88139.0,0.0113519]
[1766153419123,0.25768738,88150.0,88136.0,0.01152233]
[1766153420131,0.25768738,88150.0,88137.0,0.0113522]
[1766153420630,0.00568,88149.0,88137.0,0.0113522]
[1766153426627,0.00568,88149.0,88136.0,0.00017013]
[1766153427129,0.00568,88149.0,88139.0,0.0113518]
[1766153427331,0.00568,88149.0,88136.0,0.00017013]
[1766153427332,0.00568,88149.0,88141.0,0.0113516]
[1766153427731,0.00568,88149.0,88138.0,0.011352]
[1766153428438,0.00568,88149.0,88136.0,0.00017013]
[1766153428640,0.0028,88148.0,88136.0,0.00017013]
[1766153429028,0.0028,88148.0,88143.0,0.0113514]
[1766153429638,0.0028,88148.0,88136.0,0.00017013]
[1766153429639,0.0028,88148.0,88140.0,0.0113517]
[1766153431023,0.0028,88148.0,88136.0,0.00017013]
[1766153431234,0.25768738,88146.0,88136.0,0.00017013]
[1766153431436,0.0113511,88145.0,88136.0,0.00017013]
[1766153433042,0.25768738,88146.0,88136.0,1.3e-07]
[1766153434834,0.0113509,88147.0,88136.0,1.3e-07]
[1766153435031,0.0113511,88145.0,88136.0,1.3e-07]
[1766153437240,0.0141508,88148.0,88136.0,1.3e-07]
[1766153437441,0.25777375,88146.0,88136.0,1.3e-07]
[1766153437635,0.26912485,88146.0,88136.0,1.3e-07]
[1766153438832,0.0113513,88144.0,88136.0,1.3e-07]
[1766153439036,0.00568,88143.0,88136.0,1.3e-07]
[1766153442036,0.011351,88147.0,88136.0,1.3e-07]
[1766153442241,0.00568,88146.0,88136.0,1.3e-07]
[1766153442446,0.0056,88145.0,88136.0,1.3e-07]
[1766153448149,0.0056,88145.0,88137.0,0.0113522]
[1766153450043,0.25777375,88150.0,88139.0,0.0113519]
[1766153450245,0.00568,88149.0,88139.0,0.0113519]
[1766153450439,1.3e-07,88153.0,88136.0,1.3e-07]
[1766153450633,0.00568,88152.0,88136.0,1.3e-07]
[1766153452233,0.00568,88152.0,88141.0,0.0113516]
[1766153453647,0.00564,88152.0,88141.0,0.0113516]
[1766153454750,0.00564,88152.0,88143.0,0.0113514]
[1766153456248,0.0113484,88167.0,88140.0,0.25777375]
[1766153456453,0.02480963,88166.0,88153.0,0.01135]
[1766153456657,0.03048963,88165.0,88155.0,0.0113498]
[1766153456948,0.02480963,88164.0,88155.0,0.0113498]
[1766153457156,0.02480963,88163.0,88152.0,0.0113502]
[1766153457350,0.06118665,88182.0,88149.0,0.00585013]
[1766153457543,0.00328,88182.0,88163.0,0.0113488]
[1766153457750,0.00328,88182.0,88166.0,0.0113484]
[1766153458053,0.25777375,88180.0,88166.0,0.0113484]
[1766153458552,0.25777375,88180.0,88159.0,0.00184]
[1766153458742,0.25777375,88170.0,88159.0,0.00184]
[1766153459143,0.25777375,88170.0,88159.0,0.0018]
[1766153459352,0.25777375,88170.0,88160.0,0.0113492]
[1766153459748,0.00568,88176.0,88160.0,0.0113492]
[1766153460257,0.00568,88176.0,88159.0,0.0018]
[1766153460645,0.00568,88176.0,88149.0,0.00017013]
[1766153460646,0.25777375,88170.0,88149.0,0.00017013]
[1766153460853,0.25777375,88160.0,88149.0,0.00017013]
[1766153461149,0.26345375,88160.0,88149.0,1.3e-07]
[1766153461548,0.00568,88160.0,88149.0,1.3e-07]
[1766153461745,0.26345375,88160.0,88149.0,1.3e-07]
[1766153461947,0.00568,88160.0,88149.0,1.3e-07]
[1766153462145,0.00568,88160.0,88150.0,0.0113505]
[1766153465249,0.00568,88160.0,88153.0,0.0113501]
[1766153465448,0.00568,88168.0,88156.0,0.0113497]
[1766153465748,0.00568,88168.0,88153.0,0.0113501]
[1766153466956,0.00568,88168.0,88149.0,1.3e-07]
[1766153466957,0.00568,88168.0,88156.0,0.0113496]
[1766153467162,0.00568,88168.0,88159.0,0.0113493]
[1766153467757,0.00568,88168.0,88156.0,0.0113497]
[1766153468865,0.00568,88168.0,88158.0,0.0113494]
[1766153472958,0.25777375,88170.0,88152.0,0.0056]
[1766153472959,5e-08,88170.0,88152.0,0.0056]
[1766153473147,0.00032,88177.0,88160.0,0.25777375]
[1766153473347,0.00032,88177.0,88157.0,0.0113495]
[1766153473553,0.0113481,88169.0,88154.0,0.00568]
[1766153473754,0.0113491,88161.0,88149.0,1.3e-07]
[1766153474047,0.25777375,88160.0,88149.0,1.3e-07]
[1766153474554,0.00568,88162.0,88149.0,1.3e-07]
[1766153474959,0.25777375,88160.0,88149.0,1.3e-07]
[1766153475357,0.017029,88162.0,88149.0,1.3e-07]
[1766153476168,0.26912305,88160.0,88149.0,1.3e-07]
[1766153476960,0.25777375,88160.0,88149.0,1.3e-07]
[1766153477464,0.00568,88162.0,88149.0,1.3e-07]
[1766153478261,0.0113491,88161.0,88149.0,1.3e-07]
[1766153478963,0.00568,88162.0,88149.0,1.3e-07]
[1766153479861,0.00568,88161.0,88154.0,0.0113499]
[1766153480066,0.0044,88168.0,88157.0,0.0113495]
[1766153480262,0.0044,88168.0,88150.0,0.26333148]
[1766153480468,0.0044,88168.0,88158.0,0.0113493]
[1766153480770,0.0044,88168.0,88160.0,0.0113491]
[1766153481568,0.0044,88168.0,88162.0,0.0113489]
[1766153481760,0.0113468,88179.0,88164.0,0.0113486]
[1766153482070,0.004,88177.0,88167.0,0.0113482]
[1766153482862,0.004,88177.0,88150.0,0.26333148]
[1766153483065,0.004,88177.0,88172.0,0.0113475]
[1766153483369,0.0046,88179.0,88172.0,0.0113475]
[1766153484161,5e-08,88178.0,88172.0,0.0113475]
[1766153485271,5e-08,88178.0,88170.0,0.0113479]
[1766153487167,5e-08,88178.0,88166.0,0.0113483]
[1766153487372,5e-08,88178.0,88168.0,0.0113481]
[1766153487975,5e-08,88178.0,88161.0,0.00568]
[1766153488675,5e-08,88178.0,88169.0,0.011348]
[1766153489869,5e-08,88178.0,88166.0,0.0113484]
[1766153490076,5e-08,88178.0,88161.0,0.00568]
[1766153490373,5e-08,88178.0,88168.0,0.0113481]
[1766153490773,5e-08,88178.0,88167.0,0.0113482]
[1766153491876,5e-08,88178.0,88166.0,0.0113484]
[1766153492570,5e-08,88178.0,88161.0,0.00568]
[1766153492769,0.01134705,88178.0,88162.0,0.0113489]
[1766153493277,5e-08,88178.0,88168.0,0.0113481]
[1766153493883,5e-08,88178.0,88150.0,0.25765148]
[1766153493884,0.0113483,88168.0,88149.0,1.3e-07]
[1766153494086,0.0113484,88167.0,88152.0,0.0113502]
[1766153494384,0.0113486,88165.0,88149.0,0.01703073]
[1766153494578,0.0113489,88163.0,88149.0,0.00568013]
[1766153494776,0.0113487,88164.0,88149.0,0.00568013]
[1766153494976,0.0113491,88161.0,88149.0,1.3e-07]
[1766153495480,0.00568,88160.0,88149.0,1.3e-07]
[1766153495688,0.0113505,88150.0,88149.0,1.3e-07]
[1766153495875,0.0113505,88150.0,88125.0,0.06104823]
[1766153495876,0.0113508,88148.0,88126.0,2.38376]
[1766153496379,0.00536,88148.0,88130.0,0.25765148]
[1766153496574,0.00536,88148.0,88134.0,0.0113524]
[1766153496779,0.0167108,88148.0,88132.0,0.01152293]
[1766153496979,0.0167108,88148.0,88132.0,0.00017013]
[1766153498485,0.0113511,88146.0,88132.0,0.00017013]
[1766153499185,0.00536,88148.0,88132.0,0.00017013]
[1766153499372,0.00536,88148.0,88132.0,0.01152283]
[1766153500275,0.0113509,88147.0,88132.0,0.00017013]
[1766153500784,0.25765148,88142.0,88110.0,0.00568]
[1766153501086,0.0113537,88126.0,88110.0,0.00568]
[1766153501282,0.0113539,88124.0,88110.0,0.00568]
[1766153501585,0.00568,88125.0,88113.0,0.0113552]
[1766153502484,0.0113522,88137.0,88110.0,0.00568]
[1766153502789,0.0113513,88144.0,88122.0,0.011354]
[1766153502988,0.00568,88143.0,88122.0,0.011354]
[1766153503488,0.0113513,88144.0,88124.0,0.0113537]
[1766153503690,0.00568,88142.0,88124.0,0.0113537]
[1766153503887,0.0170316,88142.0,88124.0,0.0113537]
[1766153507584,0.0113516,88142.0,88124.0,0.0113537]
[1766153507786,0.00568,88141.0,88128.0,0.0113533]
[1766153507988,0.00432,88142.0,88128.0,0.0113533]
[1766153510791,0.00432,88142.0,88122.0,0.00017023]
[1766153510995,0.00432,88142.0,88131.0,0.0113528]
[1766153511296,0.00568,88143.0,88122.0,0.00017023]
[1766153511796,0.00568,88143.0,88133.0,0.0113526]
[1766153515395,0.00568,88143.0,88135.0,0.0113524]
[1766153516693,0.00432,88145.0,88135.0,0.0113524]
[1766153517488,0.00432,88145.0,88137.0,0.0113521]
[1766153518093,0.0913673,88163.0,88145.0,0.0113511]
[1766153518094,0.0113489,88163.0,88145.0,0.0113511]
[1766153518299,0.00568,88162.0,88148.0,0.0113507]
[1766153518795,0.00568,88161.0,88153.0,0.0113501]
[1766153518987,0.00432,88165.0,88153.0,0.0113501]
[1766153519698,0.00364,88170.0,88158.0,0.0113494]
[1766153520082,0.00364,88170.0,88155.0,0.0113498]
[1766153520596,0.00364,88170.0,88145.0,0.00585023]
[1766153520597,0.011348,88169.0,88145.0,0.00585023]
[1766153520797,0.26138539,88170.0,88153.0,0.01135]
[1766153520995,0.27273339,88170.0,88153.0,0.01135]
[1766153521388,0.26138539,88170.0,88145.0,0.00585023]
[1766153521782,0.0113481,88169.0,88153.0,0.01135]
[1766153521987,0.0113481,88169.0,88150.0,0.0113504]
[1766153522192,0.27273329,88170.0,88145.0,0.00585023]
[1766153522395,0.27273329,88170.0,88151.0,0.0113503]
[1766153522788,0.0149879,88170.0,88153.0,0.01135]
[1766153522988,0.27273329,88170.0,88153.0,0.01135]
[1766153523184,0.26138539,88170.0,88153.0,0.01135]
[1766153523688,0.0113481,88169.0,88149.0,0.0113506]
[1766153523988,0.26138539,88170.0,88152.0,0.0113501]
[1766153524895,0.26138539,88170.0,88145.0,0.00017023]
[1766153524896,0.25774539,88162.0,88145.0,0.00017023]
[1766153525100,0.0113496,88157.0,88145.0,0.00017023]
[1766153525396,0.0113502,88153.0,88145.0,2.3e-07]
[1766153526099,0.00568,88154.0,88145.0,2.3e-07]
[1766153529198,0.01703,88154.0,88145.0,2.3e-07]
[1766153529505,0.00568,88154.0,88145.0,2.3e-07]
[1766153531200,0.0113501,88153.0,88145.0,2.3e-07]
[1766153532603,0.0113507,88149.0,88145.0,2.3e-07]
[1766153532798,0.00017023,88158.0,88133.0,0.0170326]
[1766153532799,0.0113509,88147.0,88133.0,0.00568]
[1766153533198,0.0113509,88147.0,88132.0,0.0113527]
[1766153534797,0.00568,88148.0,88137.0,0.0113522]
[1766153534997,0.00568,88148.0,88134.0,0.0113525]
[1766153535603,0.00568,88148.0,88136.0,0.0113523]
[1766153536209,0.00568,88148.0,88134.0,0.0113524]
[1766153536406,0.0170308,88148.0,88134.0,0.0113524]
[1766153537711,0.00568,88148.0,88134.0,0.0113524]
[1766153538801,0.0113505,88151.0,88136.0,0.0113522]
[1766153539112,0.00432,88150.0,88136.0,0.0113522]
[1766153539311,0.00568,88149.0,88136.0,0.0113522]
[1766153539712,0.00568,88149.0,88133.0,0.0113526]
[1766153539901,0.00017023,88158.0,88131.0,0.00017023]
[1766153540102,0.01151973,88158.0,88143.0,0.0113513]
[1766153540315,0.00568,88157.0,88143.0,0.0113513]
[1766153541104,0.0113499,88155.0,88140.0,0.0113517]
[1766153541305,0.0113499,88155.0,88137.0,0.00568]
[1766153541816,0.0113499,88155.0,88139.0,0.0113518]
[1766153542321,0.00568,88157.0,88141.0,0.0113516]
[1766153542508,0.00568,88157.0,88143.0,0.0113514]
[1766153543021,0.00568,88157.0,88140.0,0.0113517]
[1766153543216,0.0113497,88156.0,88140.0,0.0113517]
[1766153543818,0.00568,88157.0,88137.0,0.00568]
[1766153544011,0.00568,88157.0,88142.0,0.0113514]
[1766153544318,0.0113497,88156.0,88142.0,0.0113514]
[1766153546210,0.00568,88157.0,88144.0,0.0113513]
[1766153546405,0.0170296,88157.0,88144.0,0.0113513]
[1766153547917,3e-08,88158.0,88137.0,0.00568]
[1766153548126,0.25773115,88180.0,88148.0,0.25773115]
[1766153548309,0.03054211,88177.0,88159.0,0.0113492]
[1766153548510,0.02486211,88176.0,88151.0,0.0113503]
[1766153548711,0.02486211,88176.0,88149.0,0.00568]
[1766153548712,0.00568,88177.0,88165.0,0.0113485]
[1766153548911,0.00568,88177.0,88149.0,0.00568]
[1766153548912,0.00568,88177.0,88162.0,0.0113489]
[1766153549413,0.00568,88177.0,88161.0,0.00017013]
[1766153549414,0.00568,88177.0,88164.0,0.0113486]
[1766153549917,0.00568,88177.0,88163.0,0.0113487]
[1766153550621,0.00568,88177.0,88161.0,0.00017013]
[1766153550920,0.0113472,88176.0,88161.0,0.00017013]
[1766153551723,0.25773115,88171.0,88161.0,0.00017013]
[1766153551919,0.0113488,88164.0,88151.0,0.00568]
[1766153552219,0.25773115,88160.0,88144.0,0.0113512]
[1766153552416,0.0113498,88156.0,88143.0,0.0056]
[1766153552615,0.00568,88158.0,88143.0,0.0056]
[1766153552812,0.0113511,88146.0,88126.0,0.06104823]
[1766153553114,0.0113511,88146.0,88127.0,0.0170334]
[1766153553115,0.25773115,88140.0,88127.0,0.0170334]
[1766153553522,0.25773115,88140.0,88127.0,0.00568]
[1766153554918,0.25773115,88140.0,88128.0,0.0113533]
[1766153555826,0.00568,88141.0,88130.0,0.011353]
[1766153557126,0.00568,88141.0,88132.0,0.0113527]
[1766153557814,0.00568,88141.0,88134.0,0.0113525]
[1766153558216,0.00568,88146.0,88136.0,0.0113522]
[1766153560022,0.00457013,88150.0,88138.0,0.011352]
[1766153560222,0.26230128,88150.0,88135.0,0.0113523]
[1766153561319,0.25773115,88145.0,88125.0,0.00017013]
[1766153561514,0.25773115,88140.0,88125.0,0.00017013]
[1766153561723,0.25773115,88140.0,88127.0,0.0113534]
[1766153562422,0.25773115,88140.0,88129.0,0.0113531]
[1766153563121,0.25773115,88140.0,88127.0,0.00568]
[1766153563321,0.25773115,88140.0,88129.0,0.0113531]
[1766153563529,0.25773115,88140.0,88131.0,0.0113529]
[1766153563830,0.00568,88145.0,88128.0,0.0113532]
[1766153564025,0.00568,88145.0,88130.0,0.011353]
[1766153564925,0.00568,88145.0,88133.0,0.0113526]
[1766153565919,0.00568,88145.0,88130.0,0.25773115]
[1766153566127,0.00568,88145.0,88127.0,0.00568]
[1766153566128,0.00284,88148.0,88141.0,0.0113516]
[1766153566330,0.00284,88148.0,88131.0,0.0113529]
[1766153566331,0.00284,88148.0,88135.0,0.00568]
[1766153566921,0.00284,88148.0,88144.0,0.0113512]
[1766153567121,0.00585013,88150.0,88144.0,0.0113512]
[1766153567526,3e-08,88150.0,88135.0,0.00568]
[1766153567732,3e-08,88150.0,88149.0,0.0113506]
[1766153567931,3e-08,88150.0,88146.0,0.011351]
[1766153568527,3e-08,88150.0,88144.0,0.0113512]
[1766153570233,3e-08,88150.0,88135.0,0.00568]
[1766153570835,3e-08,88150.0,88145.0,0.0113511]
[1766153576535,3e-08,88150.0,88147.0,0.0113508]
[1766153579447,3e-08,88150.0,88144.0,0.0113512]
[1766153579642,3e-08,88150.0,88146.0,0.011351]
[1766153579947,3e-08,88150.0,88148.0,0.0113507]
[1766153580147,3e-08,88150.0,88144.0,0.0113511]
[1766153580347,3e-08,88150.0,88146.0,0.011351]
[1766153580946,3e-08,88150.0,88144.0,0.0113512]
[1766153581141,3e-08,88150.0,88141.0,0.0170315]
[1766153581348,3e-08,88150.0,88143.0,0.0113514]
[1766153582345,3e-08,88150.0,88141.0,0.00568]
[1766153582536,3e-08,88150.0,88147.0,0.0113508]
[1766153583946,3e-08,88150.0,88149.0,0.0113506]
[1766153587245,0.00432,88164.0,88156.0,0.0113496]
[1766153587647,0.00568,88168.0,88156.0,0.0113496]
[1766153587851,0.02480054,88167.0,88154.0,0.00568]
[1766153588152,0.02480054,88166.0,88155.0,0.0113498]
[1766153588353,0.00568,88168.0,88154.0,0.00568]
[1766153588551,0.02480009,88167.0,88154.0,0.01703]
[1766153588748,0.02480009,88166.0,88154.0,0.01703]
[1766153588954,0.02480009,88165.0,88154.0,0.01703]
[1766153589157,0.00568,88168.0,88154.0,0.01703]
[1766153589346,0.0247994,88167.0,88154.0,0.01703]
[1766153589548,0.0247994,88166.0,88154.0,0.01703]
[1766153589747,0.0247994,88165.0,88154.0,0.01703]
[1766153590047,0.00568,88168.0,88154.0,0.01703]
[1766153590247,0.02479864,88167.0,88154.0,0.01703]
[1766153590454,0.00568,88174.0,88165.0,0.0113485]
[1766153590751,5e-08,88178.0,88160.0,0.26335038]
[1766153590952,5e-08,88178.0,88160.0,0.0113491]
[1766153591149,5e-08,88178.0,88161.0,0.00568]
[1766153591652,5e-08,88178.0,88166.0,0.0113484]
[1766153593252,5e-08,88178.0,88169.0,0.011348]
[1766153593448,0.0113458,88187.0,88172.0,0.0113476]
[1766153593648,0.00568,88186.0,88172.0,0.0113476]
[1766153594049,0.00568,88186.0,88171.0,0.00017013]
[1766153594050,0.011346,88185.0,88171.0,0.00017013]
[1766153595358,0.00568,88186.0,88171.0,0.01151783]
[1766153595554,0.00568,88186.0,88175.0,0.0113472]
[1766153596763,0.0113455,88189.0,88175.0,0.0113472]
[1766153596962,0.00568,88186.0,88175.0,0.0113472]
[1766153597159,0.00568,88186.0,88171.0,0.00017013]
[1766153597367,0.00432,88192.0,88171.0,0.00017013]
[1766153597669,0.01114811,88209.0,88180.0,0.25767038]
[1766153597849,0.0113444,88198.0,88180.0,0.25767038]
[1766153598050,0.00568,88197.0,88181.0,0.0113464]
[1766153599371,0.0170243,88199.0,88181.0,0.0113464]
[1766153600167,0.0113445,88197.0,88178.0,0.0113468]
[1766153600361,0.0113445,88197.0,88180.0,0.0113465]
[1766153600764,0.0113448,88195.0,88177.0,0.011347]
[1766153601067,0.00568,88199.0,88178.0,0.00568]
[1766153601068,0.25767038,88190.0,88178.0,0.00568]
[1766153601267,0.0113455,88189.0,88177.0,0.00568]
[1766153601664,0.0113451,88192.0,88177.0,0.00568]
[1766153604267,0.0113454,88190.0,88177.0,0.00568]
[1766153604663,0.0113454,88190.0,88177.0,0.00564]
[1766153605265,0.00568,88189.0,88171.0,0.00017013]
[1766153605465,0.0113466,88181.0,88171.0,0.00017013]
[1766153605865,0.0137863,88183.0,88171.0,0.00017013]
[1766153606170,0.00244,88183.0,88171.0,0.00017013]
[1766153609162,0.00244,88183.0,88171.0,0.01151783]
[1766153609560,0.00244,88183.0,88171.0,0.00017013]
[1766153609764,0.01360892,88218.0,88173.0,0.0113475]
[1766153609968,0.0243977,88217.0,88194.0,0.0113447]
[1766153610171,0.0300777,88216.0,88197.0,0.0113443]
[1766153610468,0.00568,88216.0,88197.0,0.00017013]
[1766153611171,0.0113422,88215.0,88197.0,0.00017013]
[1766153611373,0.00226712,88218.0,88198.0,0.0113443]
[1766153611570,0.00226712,88218.0,88206.0,0.0113432]
[1766153611880,0.00112,88229.0,88211.0,0.0113425]
[1766153612061,0.00112,88229.0,88211.0,0.00017002]
[1766153612477,0.00048,88236.0,88211.0,0.00017002]
[1766153613077,0.00048,88236.0,88212.0,0.0113424]
[1766153613275,0.011336,88263.0,88213.0,0.00364]
[1766153613473,0.00568,88255.0,88219.0,0.0113415]
[1766153613876,0.00568,88255.0,88228.0,0.00017002]
[1766153614474,0.0170171,88255.0,88228.0,0.00017002]
[1766153614667,0.0113378,88249.0,88228.0,0.00017002]
[1766153614876,0.0113378,88249.0,88210.0,2.38324]
[1766153615182,0.0113371,88254.0,88216.0,0.0113419]
[1766153615367,0.0113378,88249.0,88217.0,0.00568]
[1766153615568,0.0113378,88249.0,88218.0,0.00568]
[1766153615773,0.00016971,88242.0,88225.0,0.00017002]
[1766153615978,0.00568,88241.0,88225.0,0.00017002]
[1766153616681,0.47135403,88240.0,88212.0,0.00084]
[1766153617279,0.00568,88241.0,88212.0,0.00084]
[1766153617583,0.00016971,88242.0,88220.0,0.0113414]
[1766153617885,0.00016971,88242.0,88222.0,0.0113412]
[1766153618380,0.00016971,88242.0,88221.0,0.00028]
[1766153618588,1e-08,88242.0,88227.0,0.0113405]
[1766153618778,1e-08,88242.0,88231.0,0.01134]
[1766153619080,1e-08,88242.0,88233.0,0.0113398]
[1766153619484,1e-08,88242.0,88232.0,0.00564]
[1766153619783,1e-08,88242.0,88232.0,0.0169799]
[1766153619983,1e-08,88242.0,88236.0,0.0113394]
[1766153620387,2.38292,88274.0,88232.0,0.00564]
[1766153620574,0.00072,88264.0,88232.0,0.00564]
[1766153620769,0.00072,88264.0,88241.0,0.0113387]
[1766153620990,0.00072,88264.0,88242.0,0.00176]
[1766153621482,0.00017002,88259.0,88242.0,0.00176]
[1766153621673,0.00017002,88259.0,88241.0,0.00113002]
[1766153622076,0.00017002,88259.0,88241.0,0.00017002]
[1766153622276,0.0113373,88253.0,88241.0,0.00017002]
[1766153622485,0.0141373,88253.0,88229.0,0.00012]
[1766153622685,0.0141373,88253.0,88201.0,0.07239213]
[1766153622686,0.0113378,88249.0,88220.0,0.0113414]
[1766153622990,0.47135403,88250.0,88221.0,0.00356]
[1766153623284,0.0113374,88252.0,88222.0,0.0170211]
[1766153623470,0.00017002,88246.0,88228.0,0.00017002]
[1766153623674,0.002,88250.0,88228.0,0.00017002]
[1766153623875,0.002,88251.0,88229.0,0.0113403]
[1766153624369,0.002,88251.0,88228.0,0.00017002]
[1766153624574,0.00432,88252.0,88228.0,0.00017002]
[1766153624775,0.00017002,88249.0,88229.0,0.0048]
[1766153625183,0.0113379,88248.0,88228.0,0.00017002]
[1766153625380,0.00017002,88249.0,88228.0,0.00017002]
[1766153627373,0.0113379,88248.0,88228.0,0.00017002]
[1766153627886,0.00017002,88249.0,88228.0,0.00017002]
[1766153627887,0.00517002,88249.0,88228.0,0.01151032]
[1766153628384,0.01650792,88249.0,88228.0,0.00017002]
[1766153628582,0.0113382,88246.0,88228.0,0.00017002]
[1766153629390,0.00517002,88249.0,88228.0,0.00017002]
[1766153630289,0.00017002,88249.0,88239.0,0.0113389]
[1766153630489,2e-08,88249.0,88239.0,0.0113389]
[1766153631086,2e-08,88249.0,88233.0,0.0113398]
[1766153631276,2e-08,88249.0,88229.0,0.0113402]
[1766153631485,2e-08,88249.0,88228.0,0.00017002]
[1766153631883,2e-08,88249.0,88233.0,0.0113397]
[1766153632177,2e-08,88249.0,88228.0,0.00017002]
[1766153632783,2e-08,88249.0,88233.0,0.0113397]
[1766153632982,2e-08,88249.0,88235.0,0.0113394]
[1766153633384,2e-08,88249.0,88240.0,0.0113388]
[1766153634391,2e-08,88249.0,88242.0,0.0113386]
[1766153634591,2e-08,88249.0,88245.0,0.0113383]
[1766153635181,2e-08,88249.0,88248.0,0.0113379]
[1766153635490,2e-08,88249.0,88240.0,0.00568]
[1766153636892,2e-08,88249.0,88247.0,0.0113379]
[1766153637293,0.00092,88266.0,88253.0,0.0113372]
[1766153637695,0.00092,88266.0,88250.0,0.0113376]
[1766153638886,0.00092,88266.0,88249.0,0.00017002]
[1766153639792,0.00092,88266.0,88251.0,0.0113374]
[1766153640183,0.00092,88266.0,88249.0,0.00017002]
[1766153640395,0.0122556,88266.0,88249.0,0.00017002]
[1766153640588,0.00092,88266.0,88249.0,0.00017002]
[1766153640899,0.00092,88266.0,88251.0,0.0113374]
[1766153641199,0.00092,88266.0,88249.0,0.00017002]
[1766153641389,0.0113363,88261.0,88249.0,0.00017002]
[1766153642494,0.2571316,88260.0,88235.0,2.38176]
[1766153642689,0.2684693,88250.0,88231.0,0.00568]
[1766153643087,0.0113377,88250.0,88231.0,0.00568]
[1766153643286,0.2684693,88250.0,88231.0,0.00568]
[1766153643491,0.00017002,88249.0,88232.0,0.00017002]
[1766153645304,0.0113391,88239.0,88227.0,0.00568]
[1766153645603,0.011339,88240.0,88210.0,0.12444724]
[1766153645802,0.00568,88242.0,88217.0,0.0113419]
[1766153646309,0.0170187,88242.0,88221.0,0.00017002]
[1766153646494,0.00568,88242.0,88222.0,0.0113411]
[1766153646690,0.00568,88242.0,88221.0,0.00017002]
[1766153646892,0.00017002,88249.0,88221.0,0.00017002]
[1766153647100,0.0113355,88267.0,88245.0,0.0113382]
[1766153647296,0.06108289,88270.0,88223.0,0.011341]
[1766153647297,0.0113362,88261.0,88241.0,0.0113387]
[1766153647504,0.0113358,88265.0,88241.0,0.0113387]
[1766153647806,0.0113361,88262.0,88241.0,0.0113387]
[1766153648307,0.0113365,88259.0,88243.0,2e-08]
[1766153648604,0.0113373,88253.0,88243.0,2e-08]
[1766153648991,0.0113374,88252.0,88243.0,2e-08]
[1766153650100,0.0170169,88256.0,88243.0,2e-08]
[1766153651503,0.00568,88256.0,88243.0,2e-08]
[1766153652004,0.00564,88255.0,88243.0,2e-08]
[1766153654405,0.0113371,88254.0,88243.0,2e-08]
[1766153654996,0.0113376,88251.0,88243.0,2e-08]
[1766153655601,0.0113379,88249.0,88243.0,2e-08]
[1766153656500,0.00568,88248.0,88243.0,2e-08]
[1766153659104,0.0113384,88244.0,88243.0,2e-08]
[1766153659309,0.0113392,88238.0,88220.0,0.0113415]
[1766153659604,0.0113392,88238.0,88218.0,0.06104823]
[1766153659605,0.0170188,88241.0,88222.0,0.0113412]
[1766153659913,0.0170188,88241.0,88221.0,0.00568]
[1766153659914,0.011339,88239.0,88221.0,0.00568]
[1766153660205,0.0113394,88237.0,88221.0,0.00017002]
[1766153661108,0.00428,88238.0,88211.0,9.372e-05]
[1766153661301,0.0113402,88231.0,88211.0,9.372e-05]
[1766153661503,0.00568,88230.0,88211.0,9.372e-05]
[1766153661704,0.00568,88230.0,88211.0,0.01143622]
[1766153661907,0.00568,88230.0,88215.0,0.011342]
[1766153662422,0.00568,88230.0,88214.0,0.00017002]
[1766153662807,0.00568,88230.0,88211.0,0.01143622]
[1766153662808,0.00568,88230.0,88211.0,9.372e-05]
[1766153663012,0.0113419,88217.0,88207.0,0.00564]
[1766153663214,0.00144,88219.0,88199.0,0.0170241]
[1766153663414,0.00144,88219.0,88202.0,0.0113438]
[1766153663814,0.00144,88219.0,88199.0,0.00568]
[1766153664109,9.214e-05,88218.0,88202.0,2e-08]
[1766153664611,0.0113422,88215.0,88202.0,2e-08]
[1766153664806,0.01143394,88218.0,88202.0,2e-08]
[1766153665916,0.0113421,88216.0,88202.0,2e-08]
[1766153666107,9.214e-05,88218.0,88202.0,2e-08]
[1766153666315,0.0113419,88217.0,88202.0,2e-08]
[1766153667115,9.214e-05,88218.0,88202.0,2e-08]
[1766153668021,0.0113436,88204.0,88202.0,2e-08]
[1766153668210,0.00568,88203.0,88190.0,0.0113452]
[1766153668410,0.00568,88203.0,88177.0,0.00564]
[1766153668614,0.00568,88203.0,88186.0,0.0113458]
[1766153668815,0.00568,88203.0,88190.0,0.0113453]
[1766153669319,0.00568,88203.0,88188.0,0.01151552]
[1766153670820,0.00568,88203.0,88188.0,0.00017002]
[1766153671723,0.00568,88203.0,88189.0,0.0113455]
[1766153672019,0.00568,88203.0,88188.0,0.00017002]
[1766153673106,0.0170238,88203.0,88188.0,0.00017002]
[1766153673615,0.00568,88203.0,88188.0,0.00017002]
[1766153674421,0.0113438,88202.0,88188.0,0.00017002]
[1766153675417,0.00568,88203.0,88188.0,0.00017002]
[1766153675823,0.0170237,88203.0,88188.0,0.00017002]
[1766153676323,0.00568,88203.0,88188.0,0.00017002]
[1766153676708,0.00568,88203.0,88189.0,0.0113455]
[1766153678721,0.00568,88203.0,88188.0,0.00017002]
[1766153678922,0.0113444,88198.0,88188.0,0.00017002]
[1766153679122,0.0113444,88198.0,88181.0,0.0113465]
[1766153679315,0.25744936,88200.0,88183.0,0.0113462]
[1766153679523,0.011344,88201.0,88183.0,0.0113462]
[1766153679728,0.25744936,88200.0,88183.0,0.0113462]
[1766153679930,0.25744936,88200.0,88185.0,0.0113459]
[1766153680526,0.00568,88203.0,88185.0,0.0113459]
[1766153680830,0.25744936,88200.0,88185.0,0.0113459]
[1766153681419,0.25744936,88195.0,88178.0,0.00226815]
[1766153681625,0.25744936,88190.0,88178.0,0.01361495]
[1766153682024,0.25744936,88190.0,88178.0,0.00226815]
[1766153682225,0.25744936,88190.0,88174.0,0.00268]
[1766153682421,0.25744936,88190.0,88177.0,0.0113469]
[1766153683219,0.00010627,88194.0,88180.0,0.25744936]
[1766153683731,0.00568,88198.0,88180.0,0.25744936]
[1766153683929,0.00568,88198.0,88177.0,0.0113469]
[1766153683930,0.00017002,88205.0,88188.0,0.25744936]
[1766153684131,0.00164,88204.0,88196.0,0.0113445]